bitfinex-derivatives/quotes_ETHF0:USTF0_20251117
["timestamp","ask_amount","ask_price","bid_price","bid_amount"]
[1763373027683,0.74268,3197.4,3197.3,0.2406]
[1763373027872,0.74273,3197.1,3197.0,0.24349285]
[1763373028177,0.74273,3197.1,3197.0,0.00289285]
[1763373030182,1.48867174,3197.1,3197.0,0.00289285]
[1763373031879,4.69647174,3197.1,3197.0,0.00289285]
[1763373033270,0.74847,3196.8,3196.7,0.00468867]
[1763373033682,1.49441174,3196.8,3196.7,0.00468867]
[1763373034370,1.49441174,3196.8,3196.7,0.00725413]
[1763373035385,0.2413,3196.1,3196.0,3.2078]
[1763373035781,0.74858,3196.1,3196.0,3.2078]
[1763373036282,0.74858,3196.1,3196.0,3.21023025]
[1763373037285,0.74858,3196.1,3196.0,0.00243025]
[1763373037479,4.69844413,3196.1,3196.0,0.00243025]
[1763373040286,3.95638,3196.1,3196.0,0.00243025]
[1763373054501,3.95638,3196.1,3196.0,0.38353025]
[1763373054899,3.95638,3196.1,3196.0,0.23713025]
[1763373055099,3.95638,3196.1,3196.0,0.00243025]
[1763373056312,4.69814309,3196.1,3196.0,0.00243025]
[1763373066311,5.82455703,3196.1,3196.0,0.00243025]
[1763373066914,0.73983,3195.8,3195.7,0.17789867]
[1763373067112,0.2325,3195.0,3194.9,3.2078]
[1763373067313,0.73996,3195.0,3194.9,3.4425]
[1763373067912,0.74365223,3195.0,3194.9,3.44515115]
[1763373068113,1.48977735,3195.0,3194.9,3.44515115]
[1763373068318,0.74365223,3195.0,3194.9,3.44515115]
[1763373069820,0.88135223,3195.0,3194.9,0.00265115]
[1763373070017,1.62683619,3195.0,3194.9,0.00265115]
[1763373071124,1.62683619,3195.0,3194.9,0.24385115]
[1763373071325,1.62683619,3195.0,3194.9,0.00265115]
[1763373072027,1.48913619,3195.0,3194.9,0.24385115]
[1763373073018,0.98167619,3195.0,3194.9,0.24385115]
[1763373073219,0.74917619,3195.0,3194.9,0.24385115]
[1763373074231,0.00369223,3195.0,3194.9,6.24385115]
[1763373074528,3.2078,3195.4,3195.3,0.2412]
[1763373075328,0.74315,3195.7,3195.6,0.2412]
[1763373075526,0.74718273,3195.7,3195.6,0.2412]
[1763373075835,0.74316,3195.6,3195.5,0.2412]
[1763373076318,1.4873965,3195.6,3195.5,0.2412]
[1763373078840,1.48738157,3195.6,3195.5,0.2412]
[1763373079137,0.2358,3195.4,3195.3,3.4374]
[1763373079338,0.2313,3195.0,3194.9,0.22755115]
[1763373081240,0.50743,3195.3,3194.9,0.22755115]
[1763373081540,0.73873,3195.3,3195.2,0.2249]
[1763373082636,0.2313,3195.3,3195.2,0.2249]
[1763373082936,3.2078,3195.5,3195.4,0.2249]
[1763373083140,3.2078,3195.5,3195.0,0.145]
[1763373083141,0.73868,3195.6,3195.5,0.2249]
[1763373083343,1.48297217,3195.6,3195.5,0.2249]
[1763373085341,0.73871,3195.4,3195.3,0.2249]
[1763373085539,0.2313,3195.0,3194.9,0.22755115]
[1763373085739,0.2313,3195.2,3195.1,0.2249]
[1763373085940,0.73873,3195.2,3195.1,0.2249]
[1763373086342,0.2313,3195.2,3195.1,0.2249]
[1763373087438,0.73873,3195.2,3194.9,0.00265115]
[1763373087741,0.2313,3195.0,3194.9,0.22755115]
[1763373089842,0.73873,3195.2,3195.1,0.2249]
[1763373090750,0.2313,3195.0,3194.9,0.22755115]
[1763373090942,0.73876,3195.0,3194.9,0.22755115]
[1763373091245,0.87626,3195.0,3194.9,0.00265115]
[1763373095449,1.62121942,3195.0,3194.9,0.00265115]
[1763373096553,1.62121942,3195.0,3194.9,0.22755115]
[1763373097252,1.62121942,3195.0,3194.9,0.00265115]
[1763373098553,1.62121942,3195.0,3194.9,0.22755115]
[1763373099652,1.62121942,3195.0,3194.9,0.00265115]
[1763373100948,0.87626,3195.0,3194.9,0.00265115]
[1763373101150,1.6230242,3195.0,3194.9,0.00265115]
[1763373101353,1.6230242,3195.0,3194.9,0.22755115]
[1763373103054,1.6230242,3195.0,3194.9,0.00265115]
[1763373103959,0.73872,3195.4,3195.3,0.2249]
[1763373104153,0.2313,3195.4,3195.3,0.2249]
[1763373104359,1.48545117,3195.4,3195.3,0.2249]
[1763373105260,0.2313,3195.2,3195.1,3.4327]
[1763373106862,0.74268273,3195.7,3195.6,0.2249]
[1763373107356,0.2313,3195.2,3195.1,3.4327]
[1763373107866,0.87618,3195.5,3195.4,0.2249]
[1763373108056,0.73868,3195.5,3195.4,0.2249]
[1763373108564,1.48546323,3195.5,3195.4,0.2249]
[1763373110165,1.62336323,3195.5,3195.4,0.2249]
[1763373110350,0.7458,3195.4,3195.3,3.4489]
[1763373112064,0.7458,3195.4,3195.3,0.2411]
[1763373112257,0.7458,3195.4,3195.3,3.4489]
[1763373112760,0.2384,3195.4,3195.3,3.4489]
[1763373112957,0.7458,3195.4,3195.3,3.4489]
[1763373114663,0.00403273,3195.7,3195.4,0.2411]
[1763373114664,0.50738,3195.5,3195.4,0.2411]
[1763373114863,1.4924639,3195.5,3195.4,0.2411]
[1763373116571,0.7458,3195.4,3195.3,3.2078]
[1763373116869,1.4924839,3195.4,3195.3,3.2078]
[1763373119667,1.4924839,3195.4,3195.3,3.4489]
[1763373119872,1.4924839,3195.4,3195.3,3.2078]
[1763373121372,1.4924839,3195.4,3195.3,0.2411]
[1763373121777,0.00403273,3195.7,3195.6,0.2411]
[1763373121961,0.00403273,3195.7,3195.6,3.4489]
[1763373122264,1.13151359,3196.4,3196.3,0.2411]
[1763373122265,0.00468867,3196.4,3196.3,0.2411]
[1763373122471,0.00468867,3196.4,3196.3,3.4489]
[1763373123260,0.00766237,3196.4,3196.3,3.4489]
[1763373123866,3.71494,3197.1,3196.3,3.4489]
[1763373124074,0.2384,3197.3,3197.2,0.2411]
[1763373124467,0.7455,3197.3,3197.2,0.2411]
[1763373124667,0.1379,3197.5,3196.9,3.2078]
[1763373124668,0.64504,3197.0,3196.9,3.2078]
[1763373124870,0.2384,3196.6,3196.5,0.3829]
[1763373125068,0.74561,3196.6,3196.5,0.38601144]
[1763373125271,0.74561,3196.6,3196.5,0.00311144]
[1763373126669,0.74561,3196.6,3196.5,0.24421144]
[1763373126873,0.2384,3196.6,3196.5,0.24421144]
[1763373127071,0.74561,3196.6,3196.5,0.24421144]
[1763373128181,0.50721,3196.6,3196.5,0.38601144]
[1763373128578,0.74558,3196.8,3196.7,0.2411]
[1763373129678,0.2384,3196.8,3196.7,0.2411]
[1763373129987,0.00284661,3197.0,3196.9,0.2411]
[1763373131276,0.14074661,3197.0,3196.5,0.14491144]
[1763373131575,0.2384,3196.6,3196.5,0.24421144]
[1763373133180,0.74561,3196.6,3196.5,0.24421144]
[1763373133583,0.2384,3196.6,3196.5,0.24421144]
[1763373133983,0.50717,3196.8,3196.7,0.2411]
[1763373134380,0.74557,3196.8,3196.7,0.2411]
[1763373138975,0.2384,3196.6,3196.5,0.38601144]
[1763373140686,0.74561,3196.6,3196.5,0.38601144]
[1763373141980,0.74561,3196.6,3196.5,0.00311144]
[1763373142181,0.74561,3196.6,3196.2,0.00468867]
[1763373142182,0.73615,3196.3,3196.2,0.00468867]
[1763373142387,0.2289,3195.2,3195.1,3.4386]
[1763373142589,0.82878,3195.5,3195.4,0.2308]
[1763373142980,0.73632,3195.3,3195.2,0.2308]
[1763373143375,0.73632,3195.3,3195.2,0.00393294]
[1763373143779,0.73632,3195.3,3195.2,0.23473294]
[1763373144184,0.73632,3195.3,3195.2,0.00393294]
[1763373149395,0.73632,3195.3,3195.2,0.23473294]
[1763373149894,0.73632,3195.3,3195.2,0.00393294]
[1763373150985,0.50742,3195.3,3195.2,0.23473294]
[1763373151190,0.5074,3195.4,3195.3,0.2308]
[1763373151694,0.7363,3195.4,3195.3,0.2308]
[1763373153398,0.73631,3195.3,3195.2,0.00393294]
[1763373153694,0.73631,3195.3,3195.2,0.23473294]
[1763373155095,0.5074,3195.4,3195.3,0.2308]
[1763373155497,0.7363,3195.4,3195.3,0.2308]
[1763373156198,0.73631,3195.3,3195.2,0.23473294]
[1763373156694,0.73631,3195.3,3195.2,0.00393294]
[1763373157087,0.50741,3195.3,3195.2,0.23473294]
[1763373157287,0.5074,3195.4,3195.2,0.00393294]
[1763373157592,0.7363,3195.4,3195.3,0.2308]
[1763373158591,3.2078,3195.5,3195.4,0.2308]
[1763373158893,3.4367,3195.5,3195.4,0.2308]
[1763373159092,3.94408,3195.5,3195.4,0.2308]
[1763373159694,0.73631,3195.3,3195.2,0.00393294]
[1763373160796,3.5858,3195.5,3195.4,0.2308]
[1763373160994,4.09318,3195.5,3195.4,0.2308]
[1763373161191,0.73631,3195.3,3195.2,0.00393294]
[1763373169304,0.88246,3195.0,3194.9,0.0031258]
[1763373170303,0.88246,3195.0,3194.9,0.00651335]
[1763373171198,1.62996794,3195.0,3194.9,0.00651335]
[1763373172199,1.62996794,3195.0,3194.9,1.335e-05]
[1763373175009,0.147,3194.0,3193.9,3.2078]
[1763373175200,0.375,3194.0,3193.9,3.2078]
[1763373175909,0.37745612,3194.0,3193.9,3.21137466]
[1763373176203,0.37745612,3194.0,3193.9,3.44257466]
[1763373176511,0.23045612,3194.0,3193.9,3.44257466]
[1763373177009,0.00245612,3194.0,3193.9,3.44257466]
[1763373180597,0.23045612,3194.0,3193.9,3.44257466]
[1763373181410,0.00245612,3194.0,3193.9,3.44257466]
[1763373181908,0.38245612,3194.0,3193.9,3.21137466]
[1763373182207,0.24025612,3194.0,3193.9,3.45467466]
[1763373182415,0.74787612,3194.0,3193.9,3.45467466]
[1763373183711,0.89007612,3194.0,3193.9,3.21137466]
[1763373184813,0.38245612,3194.0,3193.9,3.21137466]
[1763373185306,0.38245612,3194.0,3193.9,0.00357466]
[1763373186313,0.89007612,3194.0,3193.9,0.00357466]
[1763373186812,0.74787612,3194.0,3193.9,0.24687466]
[1763373187011,0.89007612,3194.0,3193.9,0.24687466]
[1763373187315,0.89007612,3194.0,3193.9,0.00357466]
[1763373191217,1.63829842,3194.0,3193.9,0.00357466]
[1763373192314,0.74545,3193.8,3193.7,0.03131214]
[1763373193320,0.74545,3193.8,3193.7,0.03476572]
[1763373194821,0.74545,3193.8,3193.7,0.27806572]
[1763373195621,0.74545,3193.8,3193.7,0.03476572]
[1763373199516,1.49450605,3193.8,3193.7,0.03476572]
[1763373200817,1.49450605,3193.8,3193.7,0.26566572]
[1763373201215,1.49450605,3193.8,3193.7,0.03476572]
[1763373205524,0.74205,3193.2,3193.1,3.4387]
[1763373206525,0.74205,3193.2,3193.1,0.23491706]
[1763373212130,0.74205,3193.2,3193.1,0.00401706]
[1763373212432,0.74205,3193.2,3193.1,0.23491706]
[1763373216526,0.74205,3193.2,3193.1,0.00401706]
[1763373218238,1.49429461,3193.2,3193.1,0.00401706]
[1763373219438,0.00469638,3193.5,3193.4,0.2309]
[1763373219835,0.00245612,3194.0,3193.9,0.2309]
[1763373220134,0.00245612,3194.0,3193.9,3.4387]
[1763373223033,0.2384,3194.3,3194.2,0.2473]
[1763373223940,0.24098388,3194.3,3194.2,0.2473]
[1763373226643,0.2384,3194.1,3194.0,0.393]
[1763373226846,0.2384,3194.0,3193.9,3.2078]
[1763373227145,0.2384,3194.0,3193.9,3.4551]
[1763373227644,0.24098388,3194.3,3194.2,0.2473]
[1763373228140,0.24098388,3194.3,3194.0,0.1457]
[1763373228141,0.1413,3194.0,3193.9,3.2078]
[1763373228346,0.3797,3194.0,3193.9,3.4551]
[1763373229042,0.88732,3194.0,3193.9,3.2078]
[1763373230138,0.2452,3193.7,3193.6,0.00469638]
[1763373230541,0.75287,3193.7,3193.6,0.00469638]
[1763373234247,1.50302018,3193.7,3193.6,0.00469638]
[1763373239140,0.75287,3193.7,3193.6,0.00469638]
[1763373240548,1.50291874,3193.7,3193.6,0.00469638]
[1763373240843,0.50766,3193.8,3193.7,0.2419]
[1763373241040,1.50290095,3193.8,3193.7,0.2419]
[1763373241240,0.75287,3193.7,3193.6,0.00469638]
[1763373241443,1.50291095,3193.7,3193.6,0.00469638]
[1763373244050,1.50291095,3193.7,3193.6,0.24659638]
[1763373244642,1.50291095,3193.7,3193.6,0.00469638]
[1763373255253,1.50291095,3193.7,3193.6,0.24659638]
[1763373255955,1.50342583,3193.7,3193.6,0.24659638]
[1763373258162,1.50342583,3193.7,3193.6,0.00469638]
[1763373260461,1.50342583,3193.7,3193.6,0.25209638]
[1763373262461,0.75055583,3193.7,3193.6,0.25209638]
[1763373262663,0.50762,3194.0,3193.6,0.00469638]
[1763373262865,0.50762,3194.0,3193.9,0.2474]
[1763373263064,0.74782,3194.0,3193.9,0.2474]
[1763373263458,4.09804298,3194.0,3193.6,0.00469638]
[1763373263661,0.2402,3193.7,3193.6,0.00469638]
[1763373264571,0.74786,3193.7,3193.6,0.00469638]
[1763373264761,1.50010298,3193.7,3193.6,0.00469638]
[1763373265266,0.2429,3194.2,3194.1,0.248]
[1763373265464,0.2429,3193.9,3193.8,3.4558]
[1763373266168,0.75178477,3194.1,3193.8,3.4558]
[1763373266368,0.99468477,3194.0,3193.9,0.248]
[1763373267169,0.2429,3194.0,3193.9,0.248]
[1763373267368,1.65120477,3194.0,3193.9,0.248]
[1763373267671,0.2429,3193.7,3193.6,0.25269638]
[1763373271178,0.75056,3193.7,3193.6,0.00469638]
[1763373273771,1.50165058,3193.7,3193.6,0.00469638]
[1763373274585,0.99399058,3193.7,3193.6,0.00469638]
[1763373274881,0.2429,3193.7,3193.6,0.00469638]
[1763373276277,0.75056,3193.7,3193.6,0.00469638]
[1763373276477,1.50165058,3193.7,3193.6,0.00469638]
[1763373279081,0.75109058,3193.7,3193.6,0.25269638]
[1763373279283,0.50763,3193.9,3193.6,0.00469638]
[1763373279482,3.5996,3194.0,3193.9,0.248]
[1763373279679,3.5996,3194.0,3193.6,0.00469638]
[1763373279680,0.2429,3193.7,3193.6,0.00469638]
[1763373280487,0.2429,3193.7,3193.6,0.25269638]
[1763373280682,3.86433,3194.0,3193.9,0.248]
[1763373280984,4.8569663,3194.0,3193.9,0.248]
[1763373281172,0.50765,3193.9,3193.6,0.00469638]
[1763373281372,0.2429,3193.7,3193.6,0.25269638]
[1763373281779,0.75056,3193.7,3193.6,0.00469638]
[1763373282792,1.50034735,3193.7,3193.6,0.00469638]
[1763373293191,1.50034735,3193.7,3193.6,0.25199638]
[1763373293694,1.50034735,3193.7,3193.6,0.00469638]
[1763373295495,0.99268735,3193.7,3193.6,0.00469638]
[1763373295693,1.50034735,3193.7,3193.6,0.00469638]
[1763373300298,0.74978735,3193.7,3193.6,0.25199638]
[1763373300595,3.2078,3194.0,3193.6,0.25199638]
[1763373300799,3.2078,3194.0,3193.9,0.2473]
[1763373301098,3.95799774,3194.0,3193.9,0.2473]
[1763373301299,0.75019774,3194.0,3193.9,0.2473]
[1763373301492,0.2346,3194.1,3194.0,0.393]
[1763373301704,0.2346,3194.1,3194.0,0.2473]
[1763373304298,0.98463059,3194.1,3194.0,0.2473]
[1763373304798,0.2346,3194.1,3194.0,0.2473]
[1763373305293,0.98463059,3194.1,3194.0,0.2473]
[1763373305797,0.2346,3194.1,3194.0,0.2473]
[1763373306688,0.98463059,3194.1,3194.0,0.2473]
[1763373307801,0.23718388,3194.3,3194.2,0.2473]
[1763373307991,0.74475388,3194.3,3194.2,0.2473]
[1763373308188,0.2346,3194.1,3194.0,0.393]
[1763373308398,0.2346,3194.1,3194.0,0.2473]
[1763373309205,0.1353,3194.0,3193.6,3.21249638]
[1763373309403,0.2346,3193.7,3193.6,3.45979638]
[1763373309702,0.1353,3194.0,3193.6,3.45979638]
[1763373309902,0.3699,3194.0,3193.9,0.2473]
[1763373310093,0.87752,3194.0,3193.9,0.2473]
[1763373312298,0.3699,3194.0,3193.9,0.2473]
[1763373312807,0.2346,3194.0,3193.9,0.2473]
[1763373313001,0.74222,3194.0,3193.9,0.2473]
[1763373313305,0.2346,3194.0,3193.9,0.2473]
[1763373313604,0.5076,3194.1,3194.0,0.393]
[1763373313806,0.7422,3194.1,3194.0,0.2473]
[1763373314606,0.2346,3194.1,3194.0,0.2473]
[1763373316206,0.7422,3194.1,3194.0,0.2473]
[1763373317605,3.21038388,3194.3,3194.0,0.2473]
[1763373317606,0.00258388,3194.3,3194.2,0.2274]
[1763373318397,0.50745,3195.1,3194.7,0.2274]
[1763373318600,0.75245,3195.1,3195.0,0.2274]
[1763373318909,1.49870673,3195.1,3195.0,0.2274]
[1763373319110,0.75245,3195.1,3195.0,0.2274]
[1763373319611,0.75483946,3195.1,3195.0,0.2274]
[1763373322713,0.00238946,3195.1,3195.0,0.377]
[1763373323312,0.24848946,3195.1,3195.0,0.377]
[1763373323815,0.75592946,3195.1,3195.0,0.377]
[1763373324114,0.24848946,3195.1,3195.0,0.377]
[1763373324416,0.89596,3195.0,3194.9,3.2078]
[1763373325715,0.3885,3195.0,3194.9,3.4399]
[1763373325914,0.3885,3195.0,3194.9,3.2078]
[1763373326811,0.89598,3195.0,3194.5,0.1392]
[1763373327215,0.89598,3195.0,3194.9,0.2321]
[1763373328412,0.89598,3195.0,3194.6,3.2078]
[1763373329017,0.89598,3195.0,3194.9,0.2321]
[1763373329318,0.75359,3194.9,3194.8,0.2321]
[1763373329617,0.2461,3194.7,3194.6,3.2078]
[1763373329817,0.3885,3195.0,3194.9,0.2321]
[1763373330716,0.75356,3195.0,3194.9,0.2321]
[1763373330915,0.00238946,3195.1,3195.0,0.3817]
[1763373331118,0.00238946,3195.1,3195.0,3.5895]
[1763373333612,0.1424,3195.0,3194.6,3.2078]
[1763373334014,0.3885,3195.0,3194.9,0.2321]
[1763373334422,0.2461,3195.0,3194.9,0.2321]
[1763373334622,0.24848946,3195.1,3195.0,0.2321]
[1763373334921,0.75592946,3195.1,3195.0,0.2321]
[1763373335219,0.1424,3195.0,3194.6,3.2078]
[1763373335724,0.3885,3195.0,3194.9,0.2321]
[1763373336323,0.89596,3195.0,3194.9,0.2321]
[1763373336518,0.3885,3195.0,3194.6,3.2078]
[1763373336723,0.3885,3195.0,3194.9,0.2321]
[1763373337822,0.2461,3195.0,3194.9,0.2321]
[1763373338321,0.2461,3194.7,3194.6,3.2078]
[1763373338514,0.2461,3193.9,3193.8,3.2078]
[1763373338718,0.75373,3193.9,3193.8,3.2078]
[1763373340325,0.2461,3193.7,3193.6,0.00469638]
[1763373340827,0.75376,3193.7,3193.6,0.00469638]
[1763373341821,0.2461,3193.7,3193.6,0.00469638]
[1763373342021,0.75376,3193.7,3193.6,0.00469638]
[1763373343825,0.2461,3193.7,3193.6,0.00469638]
[1763373345326,0.75376,3193.7,3193.6,0.00469638]
[1763373348828,0.75376,3193.7,3193.6,0.23679638]
[1763373350225,0.2461,3193.7,3193.6,0.23679638]
[1763373350526,0.74683,3193.9,3193.8,0.2493]
[1763373350724,3.447,3194.0,3193.9,0.2493]
[1763373350919,0.74682,3194.0,3193.9,0.2493]
[1763373351123,0.88402,3194.0,3193.9,0.2493]
[1763373352627,0.3764,3194.0,3193.9,0.2493]
[1763373353025,0.2392,3194.0,3193.9,0.2493]
[1763373353528,0.88402,3194.0,3193.6,0.00469638]
[1763373353727,0.88402,3194.0,3193.9,0.2493]
[1763373354118,0.3764,3194.0,3193.9,0.2493]
[1763373354924,0.74686,3193.7,3193.6,0.00469638]
[1763373355230,0.2392,3193.7,3193.6,0.25399638]
[1763373355530,0.1372,3194.0,3193.6,0.25399638]
[1763373357428,0.50759,3194.2,3193.9,0.2493]
[1763373357628,0.2392,3194.0,3193.9,0.2493]
[1763373358133,0.3764,3194.0,3193.9,0.2493]
[1763373360234,0.1372,3194.0,3193.6,0.00469638]
[1763373360441,0.2392,3193.7,3193.6,0.25399638]
[1763373360628,0.74686,3193.7,3193.6,0.00469638]
[1763373361029,0.2392,3193.7,3193.6,0.00469638]
[1763373361237,0.74681,3194.1,3194.0,0.2493]
[1763373361735,0.2392,3193.8,3193.7,0.2493]
[1763373362538,0.74685,3193.8,3193.7,0.2493]
[1763373362735,0.2392,3193.8,3193.7,0.2493]
[1763373367356,0.74685,3193.8,3193.7,0.2493]
[1763373367742,0.2392,3193.7,3193.6,0.25399638]
[1763373367950,0.74686,3193.7,3193.6,0.25399638]
[1763373368155,0.74686,3193.7,3193.6,0.00469638]
[1763373368549,1.49508887,3193.7,3193.6,0.00469638]
[1763373369149,1.49508887,3193.7,3193.6,0.25399638]
[1763373370458,0.98742887,3193.7,3193.6,0.25399638]
[1763373372449,1.49508887,3193.7,3193.6,0.25399638]
[1763373372657,1.49508887,3193.7,3193.6,0.00469638]
[1763373373048,0.74684,3193.9,3193.8,0.2493]
[1763373373248,1.49513831,3193.9,3193.8,0.2493]
[1763373373844,0.2392,3193.7,3193.6,0.25399638]
[1763373375355,0.74686,3193.7,3193.6,0.25399638]
[1763373375660,0.2392,3193.7,3193.6,0.25399638]
[1763373376054,3.85263,3194.0,3193.6,0.25399638]
[1763373376360,4.09183,3194.0,3193.9,0.2493]
[1763373376560,4.84016465,3194.0,3193.9,0.2493]
[1763373376756,4.33253465,3194.0,3193.9,0.2493]
[1763373376950,4.70295465,3194.0,3193.9,0.2493]
[1763373377149,4.85005465,3194.0,3193.9,0.2493]
[1763373378656,0.98753465,3194.0,3193.9,0.2493]
[1763373378854,1.49515465,3194.0,3193.9,0.2493]
[1763373379167,0.98753465,3194.0,3193.9,0.2493]
[1763373379555,0.2392,3194.0,3193.9,0.2493]
[1763373379757,0.98753465,3194.0,3193.9,0.2493]
[1763373380263,0.2275,3194.8,3194.7,0.2398]
[1763373380466,0.74795798,3194.8,3194.7,0.2398]
[1763373380764,0.97545798,3194.8,3194.7,0.2398]
[1763373381152,0.2275,3194.8,3194.7,0.2398]
[1763373383666,0.2275,3194.7,3194.6,3.4476]
[1763373385373,0.2275,3194.7,3194.6,3.2078]
[1763373386065,0.735,3194.7,3194.6,3.2078]
[1763373386272,0.2275,3194.3,3194.2,3.4476]
[1763373387166,0.5075,3194.8,3194.2,3.4476]
[1763373388062,0.735,3194.8,3194.7,0.2398]
[1763373388869,0.2275,3194.6,3194.5,0.3845]
[1763373389066,0.2275,3194.6,3194.2,3.2078]
[1763373389268,0.2275,3194.6,3194.5,0.2398]
[1763373389868,3.2078,3194.9,3194.8,0.2398]
[1763373390069,3.4353,3194.9,3194.8,0.2398]
[1763373391068,3.2078,3194.9,3194.8,0.2398]
[1763373391575,3.4353,3194.9,3194.8,0.2398]
[1763373392672,0.2275,3194.6,3194.5,0.3845]
[1763373395171,3.4353,3194.9,3194.8,0.2398]
[1763373395876,0.22988946,3195.1,3195.0,0.2398]
[1763373396072,0.00238946,3195.1,3195.0,0.3845]
[1763373396274,0.22988946,3195.1,3195.0,0.2398]
[1763373396876,0.22988946,3195.1,3195.0,0.3845]
[1763373397075,0.00238946,3195.1,3195.0,0.3845]
[1763373397278,0.00238946,3195.1,3194.8,3.4476]
[1763373397279,0.2275,3194.9,3194.8,3.4476]
[1763373397475,0.00238946,3195.1,3194.8,3.4476]
[1763373397682,0.22988946,3195.1,3195.0,0.2398]
[1763373399375,0.22988946,3195.1,3195.0,0.3845]
[1763373399680,0.22988946,3195.1,3195.0,0.2398]
[1763373400482,0.22988946,3195.1,3194.8,3.4476]
[1763373400483,0.2275,3194.9,3194.8,3.4476]
[1763373401282,0.22988946,3195.1,3195.0,0.2398]
[1763373404688,0.22988946,3195.1,3195.0,0.3845]
[1763373407191,0.2275,3194.9,3194.8,3.2078]
[1763373411591,0.00238946,3195.1,3195.0,0.3922]
[1763373411786,0.24528946,3195.1,3195.0,0.3922]
[1763373412489,0.24528946,3195.1,3195.0,0.2493]
[1763373413797,0.2429,3194.9,3194.8,3.4571]
[1763373416295,0.24528946,3195.1,3195.0,0.2493]
[1763373416685,0.24528946,3195.1,3195.0,0.3922]
[1763373417088,0.24528946,3195.1,3195.0,0.2493]
[1763373420298,0.24528946,3195.1,3195.0,0.3922]
[1763373421393,0.00238946,3195.1,3195.0,0.3922]
[1763373425194,0.00469638,3195.4,3195.3,0.2493]
[1763373425388,0.00469638,3195.4,3195.3,3.4571]
[1763373425791,0.00469638,3195.4,3195.3,5.69482924]
[1763373426188,0.00837752,3195.4,3195.3,3.4571]
[1763373429406,0.25127752,3195.4,3195.3,3.4571]
[1763373430100,0.00837752,3195.4,3195.3,3.4571]
[1763373433307,1.12816655,3196.0,3195.9,0.2493]
[1763373433699,0.3849,3196.0,3195.9,0.2493]
[1763373433904,1.12816655,3196.0,3195.9,0.2493]
[1763373434105,0.2429,3195.6,3195.5,0.3922]
[1763373434306,0.2429,3195.6,3195.5,0.25286661]
[1763373434507,0.2429,3195.6,3195.5,0.00356661]
[1763373436010,3.95806,3195.6,3195.5,0.00356661]
[1763373436203,0.75031,3195.3,3195.2,0.00469638]
[1763373436610,0.2429,3194.6,3194.5,3.6018]
[1763373437310,0.142,3195.0,3194.5,3.504506]
[1763373437610,0.2429,3194.6,3194.5,3.504506]
[1763373438507,0.2429,3194.6,3194.5,3.459906]
[1763373438813,0.2429,3194.6,3194.5,3.210606]
[1763373439016,0.75042,3194.6,3194.5,3.210606]
[1763373440007,0.2429,3194.6,3194.5,3.210606]
[1763373443113,0.2429,3194.6,3194.5,3.458306]
[1763373446713,0.2346,3194.9,3194.8,0.2477]
[1763373447116,0.97830648,3195.1,3195.0,0.2477]
[1763373447312,0.1481,3195.0,3194.5,3.354406]
[1763373447524,0.2346,3194.6,3194.5,3.602106]
[1763373451623,0.65556,3195.0,3194.5,3.602106]
[1763373457820,0.65556,3195.0,3194.5,0.394306]
[1763373458022,3.86336,3195.0,3194.5,0.394306]
[1763373458224,0.2346,3194.6,3194.5,0.250506]
[1763373460225,0.2346,3194.6,3194.5,0.394306]
[1763373461326,0.74212,3194.6,3194.5,0.002806]
[1763373463524,0.2346,3194.6,3194.5,0.394306]
[1763373465622,0.98150355,3194.6,3194.5,0.394306]
[1763373467514,0.74690355,3194.6,3194.5,0.394306]
[1763373468118,0.2346,3194.8,3194.7,0.2477]
[1763373468318,0.98273361,3194.8,3194.7,0.2477]
[1763373469227,1.49022361,3194.8,3194.7,0.2477]
[1763373472116,1.49041232,3194.8,3194.7,0.2477]
[1763373480330,0.74582,3194.6,3194.5,0.249406]
[1763373480534,1.49414232,3194.6,3194.5,0.002806]
[1763373485133,0.88764,3194.5,3194.4,0.00469638]
[1763373485437,4.84376232,3194.5,3194.4,0.00469638]
[1763373486230,4.84376232,3194.5,3194.4,0.00707734]
[1763373488137,4.84376232,3194.5,3194.4,0.25367734]
[1763373488533,4.84376232,3194.5,3194.4,0.00707734]
[1763373492140,4.84284462,3194.5,3194.4,0.00707734]
[1763373495737,1.63504462,3194.5,3194.4,0.00707734]
[1763373496145,4.84284462,3194.5,3194.4,0.00707734]
[1763373497042,3.95520462,3194.5,3194.4,0.25367734]
[1763373497239,3.95358,3194.9,3194.8,0.2466]
[1763373497441,4.70138804,3194.9,3194.8,0.2466]
[1763373497638,4.19390804,3194.9,3194.8,0.2466]
[1763373497843,3.2078,3194.9,3194.8,0.2466]
[1763373498339,3.4461,3194.9,3194.8,0.2466]
[1763373499042,3.2078,3194.9,3194.8,0.2466]
[1763373501046,0.73824,3195.1,3195.0,0.2464]
[1763373501248,1.48568845,3195.1,3195.0,0.2464]
[1763373502947,0.50746,3195.0,3194.5,3.3514]
[1763373503247,0.65096,3195.0,3194.5,3.3514]
[1763373503639,0.88176,3195.0,3194.9,0.2464]
[1763373505250,0.50748,3194.9,3194.5,3.3514]
[1763373506255,0.2308,3194.6,3194.5,3.2078]
[1763373506456,0.2308,3194.5,3194.4,0.25347734]
[1763373509552,0.73834,3194.5,3194.4,0.25347734]
[1763373509856,0.2308,3194.5,3194.4,0.25347734]
[1763373515761,0.2308,3194.8,3194.7,0.2464]
[1763373520457,0.73829,3194.8,3194.7,0.2464]
[1763373521062,0.2308,3194.8,3194.7,0.2464]
[1763373522363,0.97813322,3194.8,3194.7,0.2464]
[1763373524063,1.48562322,3194.8,3194.7,0.2464]
[1763373524457,0.97813322,3194.8,3194.7,0.2464]
[1763373524965,1.48562322,3194.8,3194.7,0.2464]
[1763373526766,0.97813322,3194.8,3194.7,0.2464]
[1763373527870,0.74733322,3194.8,3194.7,0.2464]
[1763373528464,1.48616334,3194.9,3194.8,0.2464]
[1763373531973,0.97868334,3194.9,3194.8,0.2464]
[1763373532172,0.2308,3194.9,3194.8,0.2464]
[1763373533170,0.97868334,3194.9,3194.8,0.2464]
[1763373535583,1.48615334,3194.9,3194.8,0.2464]
[1763373535878,0.2483,3194.6,3194.5,0.3894]
[1763373538083,0.7558,3194.8,3194.7,0.2477]